bitfinex/quotes_ETHUSD_20240729
["timestamp","ask_amount","ask_price","bid_price","bid_amount"]
[1722211488666,0.67343956,3275.8,3275.7,2.44222]
[1722211488824,1.73084181,3275.8,3275.7,2.44222]
[1722211491784,1.05740225,3275.8,3275.7,6.92269775]
[1722211491986,2.2999,3276.5,3275.9,2.44201]
[1722211492187,1.73069284,3276.4,3275.9,2.44201]
[1722211492398,1.73069284,3276.3,3276.0,0.13951002]
[1722211492559,1.7306633,3276.2,3276.0,0.13951002]
[1722211492896,1.7306633,3276.1,3276.0,0.13951002]
[1722211493355,1.96272923,3276.1,3276.0,0.13951002]
[1722211493555,1.7306633,3276.1,3276.0,0.13951002]
[1722211494570,1.7306633,3276.1,3276.0,2.58151002]
[1722211494968,1.05729369,3276.1,3276.0,5.02351002]
[1722211495181,2.3525,3276.8,3276.3,2.44176]
[1722211495383,0.67337892,3276.7,3276.3,3.51676]
[1722211495591,0.67337892,3276.6,3276.3,3.51672]
[1722211495801,1.73061972,3276.5,3276.4,0.1392664]
[1722211496292,1.73061972,3276.5,3276.4,2.5809664]
[1722211497492,1.73061972,3276.5,3276.4,3.6559664]
[1722211497994,1.73061972,3276.5,3276.4,6.70743904]
[1722211498194,1.0572408,3276.5,3276.4,6.70743904]
[1722211498692,2.4635,3277.1,3276.6,2.44149]
[1722211498991,1.73043788,3277.0,3276.7,2.58025458]
[1722211499183,1.73043788,3276.9,3276.7,2.58025458]
[1722211499384,1.73043788,3276.8,3276.7,2.58025458]
[1722211499559,1.05710907,3276.8,3276.7,2.58025458]
[1722211499990,1.73063037,3276.8,3276.7,2.58025458]
[1722211500386,1.05710907,3276.8,3276.7,2.58025458]
[1722211500700,1.73065659,3276.8,3276.7,0.13884458]
[1722211501000,2.4615,3276.7,3276.2,3.51683]
[1722211501297,1.7308022,3276.6,3276.0,3.51698]
[1722211501503,1.05714988,3276.5,3276.2,2.4418]
[1722211501711,2.4615,3276.7,3276.3,2.44176]
[1722211501881,1.73088194,3276.6,3276.3,2.44176]
[1722211502081,1.05724021,3276.6,3276.1,5.44187]
[1722211502400,1.73071248,3276.5,3276.1,5.44187]
[1722211502698,1.05724021,3276.4,3276.2,2.44185]
[1722211502899,1.05724021,3276.3,3276.2,2.44185]
[1722211503101,1.05724021,3276.6,3276.2,2.44185]
[1722211503306,1.73071707,3276.5,3276.3,2.44172]
[1722211503464,1.05724021,3276.4,3276.3,2.44172]
[1722211503659,1.05717975,3276.4,3276.3,2.44172]
[1722211504064,1.0572329,3276.4,3276.3,2.44172]
[1722211504508,2.3845,3277.0,3276.6,2.44151]
[1722211504680,1.73060045,3276.9,3276.6,2.44151]
[1722211504875,1.73060045,3276.8,3276.6,2.44151]
[1722211505104,1.0571692,3276.7,3276.6,2.44151]
[1722211506673,1.0571692,3276.7,3276.6,2.58035072]
[1722211507387,1.05711782,3276.7,3276.6,2.58035072]
[1722211509274,1.05711782,3276.7,3276.6,5.02190072]
[1722211509679,1.05711782,3276.7,3276.6,2.58035072]
[1722211510477,1.05712261,3276.7,3276.6,6.70660279]
[1722211510691,2.366,3277.4,3277.0,2.44124]
[1722211510901,2.366,3277.4,3277.1,0.13847155]
[1722211510902,1.05698739,3277.3,3277.1,0.13847155]
[1722211511097,2.366,3277.4,3277.1,2.57961155]
[1722211511308,1.05698288,3277.3,3277.1,0.13847155]
[1722211511840,1.05698288,3277.2,3277.1,5.02083155]
[1722211512124,2.4307,3277.7,3277.3,2.44101]
[1722211512285,1.05689036,3277.6,3277.4,0.13826903]
[1722211512616,2.917836,3277.7,3277.4,0.13826903]
[1722211512617,1.05689036,3277.5,3277.4,0.13826903]
[1722211513326,1.05689036,3277.5,3277.4,2.57921903]
[1722211513640,2.4307,3277.7,3277.5,2.44087]
[1722211513924,1.05682076,3277.6,3277.5,2.44087]
[1722211515918,1.05682076,3277.6,3277.3,2.44101]
[1722211515919,1.05682076,3277.6,3277.4,2.44095]
[1722211516158,1.05682076,3277.5,3277.4,2.44095]
[1722211516381,1.05682076,3277.6,3277.4,2.44095]
[1722211516542,2.4307,3277.7,3277.4,2.44095]
[1722211516543,1.05682076,3277.5,3277.4,2.44095]
[1722211516742,1.05689821,3277.5,3277.3,2.44101]
[1722211516963,1.05689821,3277.4,3277.3,2.44101]
[1722211519847,1.05689821,3277.4,3277.2,2.4411]
[1722211520039,2.4307,3277.7,3277.3,2.44101]
[1722211520627,1.05687271,3277.6,3277.3,2.44101]
[1722211520963,1.05687271,3277.5,3277.3,2.44101]
[1722211521179,1.05687271,3277.4,3277.1,2.44113]
[1722211521347,2.4307,3277.7,3277.2,2.44109]
[1722211521548,1.05687198,3277.6,3277.2,2.44109]
[1722211521753,1.05687198,3277.5,3277.3,0.13803861]
[1722211521946,1.05687198,3277.6,3277.3,0.13803861]
[1722211522182,1.05687198,3277.6,3277.3,2.57904861]
[1722211522567,1.05687216,3277.5,3277.3,2.57904861]
[1722211522773,1.05687216,3277.4,3277.3,2.57904861]
[1722211523068,1.05687216,3277.6,3277.3,2.57904861]
[1722211523374,1.05687014,3277.5,3277.3,2.57904861]
[1722211523680,1.05687014,3277.4,3277.3,2.57904861]
[1722211523837,1.05687014,3277.6,3277.3,2.57904861]
[1722211525666,1.05687014,3277.6,3277.3,0.13803861]
[1722211526370,1.05687319,3277.5,3277.3,0.13803861]
[1722211526598,1.05687319,3277.4,3277.3,0.13803861]
[1722211527843,1.05687319,3277.4,3277.0,2.44123]
[1722211528158,1.05687319,3277.3,3277.0,5.44123]
[1722211528355,1.05687319,3277.5,3277.0,5.44123]
[1722211528568,1.05687319,3277.5,3277.0,7.88243]
[1722211529684,2.44092,3277.5,3277.0,3.0]
[1722211529978,2.44092,3277.5,3277.0,1.075]
[1722211529979,1.05696568,3277.4,3277.0,1.075]
[1722211530162,2.44092,3277.5,3277.0,4.075]
[1722211530346,1.05699103,3277.4,3277.0,4.075]
[1722211530546,1.05699103,3277.3,3277.0,6.51618]
[1722211530773,1.05699103,3277.6,3277.0,5.95738]
[1722211530978,1.05699103,3277.5,3277.0,5.95738]
[1722211531179,1.05699103,3277.4,3277.0,5.95738]
[1722211531383,1.05699103,3277.3,3277.0,3.51618]
[1722211531584,1.05699103,3277.2,3277.0,3.51618]
[1722211531749,1.05699103,3277.1,3277.0,1.075]
[1722211531958,1.05699103,3277.4,3277.0,1.075]
[1722211532247,2.44083,3277.6,3277.0,1.075]
[1722211532248,1.05699624,3277.3,3277.0,1.075]
[1722211532481,1.05699624,3277.2,3277.0,3.51625]
[1722211532682,1.05699624,3277.5,3277.0,3.51625]
[1722211532979,1.05699403,3277.4,3277.0,3.51625]
[1722211533184,1.05699403,3277.3,3277.0,3.51625]
[1722211533383,1.05699403,3277.2,3277.0,3.51625]
[1722211533600,1.05699403,3277.1,3277.0,3.5162]
[1722211533767,1.05699403,3277.1,3277.0,6.5162]
[1722211534901,1.05699403,3277.1,3277.0,4.075]
[1722211535081,1.05699403,3277.1,3277.0,1.075]
[1722211536175,2.4409,3277.5,3277.0,1.075]
[1722211536381,2.4888,3277.3,3276.5,34.51158]
[1722211536590,4.78493,3277.1,3276.6,3.0]
[1722211536756,1.05697949,3277.0,3276.6,3.19594193]
[1722211536957,1.05697949,3277.0,3276.6,7.67474346]
[1722211537881,3.49823949,3277.0,3276.6,2.23324346]
[1722211538052,1.05697949,3276.9,3276.6,0.19594193]
[1722211539351,2.3437,3277.1,3276.6,0.19594193]
[1722211539604,1.7305997,3277.0,3276.6,0.19594193]
[1722211539805,1.05715674,3277.0,3276.6,0.19594193]
[1722211540018,1.05712787,3276.9,3276.6,0.19594193]
[1722211540305,2.3437,3277.1,3276.6,0.19594193]
[1722211540306,1.05712787,3276.8,3276.6,0.19594193]
[1722211540512,2.3437,3277.1,3276.6,0.19594193]
[1722211540513,1.05712787,3276.7,3276.6,0.19594193]
[1722211540653,1.05712787,3277.0,3276.6,0.19594193]
[1722211540860,1.73062032,3276.9,3276.6,0.19594193]
[1722211541054,1.05712787,3276.8,3276.6,0.19594193]
[1722211541292,2.3954,3276.7,3276.6,0.19594193]
[1722211541489,2.44163,3276.5,3276.0,7.28]
[1722211541691,1.73084245,3276.4,3276.0,7.28]
[1722211541895,1.05732347,3276.3,3276.0,7.28]
[1722211542100,1.05732347,3276.2,3276.0,7.60850163]
[1722211542257,2.3954,3276.6,3276.0,11.12550163]
[1722211542258,1.05732347,3276.1,3276.0,11.12550163]
[1722211542462,2.3954,3276.6,3276.0,11.12550163]
[1722211542661,1.73072933,3276.5,3276.0,11.12550163]
[1722211542861,1.05729101,3276.4,3276.0,11.12550163]
[1722211543165,2.4779,3276.2,3276.0,7.28]
[1722211543371,1.05729101,3276.1,3276.0,7.28]
[1722211544471,3.49921101,3276.1,3276.0,7.28]
[1722211544886,3.49921101,3276.1,3275.8,19.65]
[1722211545081,1.05729101,3276.0,3275.5,2.44234]
[1722211545393,3.49930101,3276.0,3275.4,8.355]
[1722211545565,1.05729101,3275.9,3275.4,12.61945846]
[1722211545759,2.44201,3276.0,3275.5,3.0]
[1722211545760,1.05747847,3275.8,3275.5,3.0]
[1722211545982,2.44201,3276.0,3275.5,3.0]
[1722211546200,1.0574753,3275.9,3275.5,3.0]
[1722211546403,1.0574753,3275.8,3275.5,3.0]
[1722211546608,2.44201,3276.0,3275.5,3.0]
[1722211546795,1.05747077,3275.9,3275.5,3.0]
[1722211547001,2.44201,3276.0,3275.5,3.0]
[1722211547181,1.0574725,3275.9,3275.5,3.0]
[1722211547602,3.4995525,3275.9,3275.5,3.0]
[1722211547785,3.4995525,3275.9,3275.4,4.075]
[1722211547786,2.44208,3275.9,3275.4,4.075]
[1722211547987,2.442,3276.0,3275.6,1.075]
[1722211549083,1.05748068,3275.9,3275.6,1.075]
[1722211549423,2.442,3276.0,3275.6,1.075]
[1722211549726,2.44193,3276.1,3275.6,1.075]
[1722211549939,2.4779,3276.2,3275.8,1.075]
[1722211550210,2.44177,3276.3,3275.8,1.075]
[1722211550424,1.05738816,3276.2,3275.8,1.075]
[1722211550642,2.44177,3276.3,3275.8,1.075]
[1722211550987,1.05734333,3276.2,3275.8,1.075]
[1722211551212,2.44177,3276.3,3275.8,1.075]
[1722211551412,1.05734348,3276.2,3275.8,1.075]
[1722211551719,2.44177,3276.3,3275.9,0.19684118]
[1722211551925,1.05737054,3276.2,3275.9,0.19684118]
[1722211552151,2.44177,3276.3,3275.9,0.19684118]
[1722211552458,1.05738699,3276.2,3275.9,0.19684118]
[1722211552750,2.44177,3276.3,3275.9,0.19684118]
[1722211552952,1.05738766,3276.2,3275.9,0.19684118]
[1722211553318,2.44177,3276.3,3275.9,0.19684118]
[1722211553517,1.05738816,3276.2,3275.7,2.44217]
[1722211553767,2.44177,3276.3,3275.8,0.19692627]
[1722211554063,4.82347,3276.1,3275.6,1.075]
[1722211554268,4.82347,3276.1,3275.9,0.1968636]
[1722211554444,2.44212,3275.9,3275.4,10.28]
[1722211554873,2.44217,3275.8,3275.4,10.28]
[1722211556664,2.44217,3275.8,3275.4,3.0]
[1722211562085,2.44223,3275.7,3275.4,3.0]
[1722211562298,2.4423,3275.6,3275.3,20.725]
[1722211562895,2.4423,3275.6,3275.3,1.075]
[1722211563481,4.9241,3275.6,3275.1,4.075]
[1722211563694,2.44237,3275.5,3275.1,3.0]
[1722211563886,2.4426,3275.2,3275.0,7.28]
[1722211564398,1.05774253,3275.1,3275.0,7.28]
[1722211566167,2.44282,3274.9,3274.8,19.65]
[1722211566511,1.0577782,3274.9,3274.4,7.28]
[1722211566655,2.44276,3275.0,3274.4,10.32901288]
[1722211567030,1.05776853,3274.9,3274.5,0.19786592]
[1722211567158,4.93129,3275.1,3274.5,1.27286592]
[1722211567354,1.0577316,3275.0,3274.5,2.4330538]
[1722211567604,2.44254,3275.3,3274.5,2.4330538]
[1722211567605,2.44254,3275.3,3274.7,1.075]
[1722211567758,2.44254,3275.3,3274.8,0.19767777]
[1722211567759,1.05771177,3275.2,3274.8,0.19767777]
[1722211567959,2.44254,3275.3,3274.7,3.51791]
[1722211568301,1.05771087,3275.2,3274.8,0.19767777]
[1722211568506,3.50043087,3275.1,3274.8,0.19767777]
[1722211568648,1.05771087,3275.0,3274.5,1.075]
[1722211568853,1.05771087,3275.0,3274.9,0.19761506]
[1722211569053,1.05771087,3275.0,3274.5,1.075]
[1722211569308,1.05771087,3275.0,3274.9,0.19761506]
[1722211569472,1.05771087,3275.0,3274.5,1.075]
[1722211569797,1.05771087,3275.0,3274.5,3.51811]
[1722211570004,1.05771087,3275.1,3274.6,0.1978032]
[1722211570229,1.05771087,3275.0,3274.6,0.1978032]
[1722211570497,1.05771087,3274.9,3274.6,0.1978032]
[1722211570797,4.88544,3275.1,3274.6,0.19607381]
[1722211571013,1.05773937,3275.0,3274.6,0.19607381]
[1722211571354,1.05773937,3274.9,3274.6,0.19607381]
[1722211571554,2.931244,3275.1,3274.6,0.19607381]
[1722211571772,1.0577383,3275.0,3274.6,0.19607381]
[1722211571967,1.0577383,3274.9,3274.6,0.19607381]
[1722211572204,0.488544,3275.1,3274.6,2.63907381]
[1722211572416,1.05773573,3275.0,3274.6,2.63907381]
[1722211572613,1.05773573,3274.9,3274.7,1.075]
[1722211572777,2.4426,3275.2,3274.7,1.075]
[1722211572989,1.05773506,3275.1,3274.8,0.1960111]
[1722211573305,1.05773506,3275.0,3274.7,1.075]
[1722211573516,3.50045506,3275.1,3274.9,0.19594839]
[1722211573660,1.05773506,3275.0,3274.8,0.1960111]
[1722211573994,3.03702551,3275.1,3274.5,1.075]
[1722211574211,2.4426,3275.2,3274.5,1.075]
[1722211574212,1.05773499,3274.9,3274.5,1.075]
[1722211574502,1.05773499,3275.0,3274.5,3.51811]
[1722211574684,1.05774511,3274.9,3274.5,3.51811]
[1722211574887,2.44267,3275.1,3274.5,3.51811]
[1722211575095,1.0577427,3275.0,3274.6,2.44303]
[1722211575262,1.0577427,3274.9,3274.5,1.075]
[1722211575467,2.44267,3275.1,3274.5,1.075]
[1722211575778,1.05774433,3275.0,3274.5,1.075]
[1722211575983,1.05774433,3274.9,3274.5,1.075]
[1722211576205,2.44267,3275.1,3274.5,1.075]
[1722211576420,1.05774366,3275.0,3274.5,3.51811]
[1722211576642,1.05774366,3274.9,3274.5,3.51811]
[1722211576843,1.05774366,3275.0,3274.5,3.51811]
[1722211577027,1.05774544,3274.9,3274.5,3.51811]
[1722211577348,2.44267,3275.1,3274.5,3.51811]
[1722211577485,1.05773524,3275.0,3274.5,3.51811]
[1722211577698,2.4426,3275.2,3274.5,5.96116]
[1722211577888,2.4426,3275.2,3274.5,3.51805]
[1722211578196,3.50041514,3275.1,3274.6,0.19629353]
[1722211578400,1.05773514,3275.0,3274.6,0.19629353]
[1722211578694,2.44268,3275.1,3274.6,0.19629353]
[1722211578966,1.05773504,3275.0,3274.6,0.19629353]
[1722211579114,1.05773504,3274.9,3274.6,0.19629353]
[1722211579309,1.05773504,3275.0,3274.6,0.19629353]
[1722211580563,1.05774381,3274.9,3274.6,0.19629353]
[1722211581051,2.44268,3275.1,3274.6,0.19629353]
[1722211581268,1.0577332,3275.0,3274.6,0.19629353]
[1722211581473,1.0577332,3274.9,3274.6,0.19629353]
[1722211581624,2.44268,3275.1,3274.6,0.19629353]
[1722211581827,1.05773265,3275.0,3274.6,0.19629353]
[1722211582052,1.05773265,3274.9,3274.6,0.19629353]
[1722211582375,2.44268,3275.1,3274.6,0.19629353]
[1722211582577,1.05773186,3275.0,3274.6,0.19629353]
[1722211582785,1.05773186,3274.9,3274.6,0.19629353]
[1722211582964,2.44268,3275.1,3274.6,0.19629353]
[1722211583163,1.05773138,3275.0,3274.6,2.63933353]
[1722211583367,1.05773138,3274.9,3274.6,5.08232353]
[1722211583545,2.44258,3275.3,3274.7,2.44295]
[1722211583748,1.0577285,3275.2,3274.8,0.1961681]
[1722211583945,1.05772871,3275.1,3274.7,2.44295]
[1722211584180,1.05772871,3275.0,3274.8,0.1961681]
[1722211584690,1.05772871,3274.9,3274.5,3.51805]
[1722211584834,1.05772871,3275.1,3274.5,3.51805]
[1722211585035,1.05772871,3275.1,3274.6,2.44304]
[1722211585372,1.05772871,3275.1,3274.8,2.44285]
[1722211585551,1.05772871,3275.3,3274.8,4.83525]
[1722211585874,1.05772871,3275.2,3274.8,4.83525]
[1722211586045,1.05772871,3275.1,3274.8,4.83525]
[1722211586248,1.05772871,3275.0,3274.8,4.83525]
[1722211586442,1.05772871,3274.9,3274.8,4.83525]
[1722211587264,1.05768469,3274.9,3274.8,4.83525]
[1722211587764,1.0576845,3274.9,3274.8,4.83525]
[1722211588663,1.0576845,3274.9,3274.7,3.51796]
[1722211588980,1.0576845,3274.8,3274.7,2.44296]
[1722211589178,1.0576845,3275.2,3274.7,2.44296]
[1722211589352,4.32334495,3275.2,3274.7,2.44296]
[1722211589556,1.0576845,3275.1,3274.7,2.44296]
[1722211590442,2.44272,3275.1,3274.5,4.73086]
[1722211590791,5.83935554,3275.0,3274.4,7.28]
[1722211590930,1.05770554,3274.9,3274.4,7.28]
[1722211591265,1.05770554,3274.9,3274.4,9.72315]
[1722211593449,1.05770554,3274.9,3274.4,10.79815]
[1722211593851,4.78165,3275.0,3274.4,10.79815]
[1722211593852,1.05777405,3274.8,3274.4,10.79815]
[1722211594077,1.05777405,3274.7,3274.4,8.355]
[1722211594277,1.05777405,3274.8,3274.4,10.79818]
[1722211594481,2.44283,3274.9,3274.4,10.79818]
[1722211594482,1.05777405,3274.7,3274.4,10.79818]
[1722211594685,1.05777405,3274.8,3274.4,10.79818]
[1722211594860,1.05777405,3274.7,3274.4,10.79818]
[1722211595073,1.05777405,3274.8,3274.4,10.79818]
[1722211595391,1.05777405,3274.8,3274.4,3.51818]
[1722211596890,1.05777405,3274.8,3274.5,2.6397927]
[1722211597091,2.3389,3275.0,3274.5,2.6397927]
[1722211597408,0.95779164,3274.9,3274.5,2.6397927]
[1722211597558,2.3389,3275.0,3274.5,3.10033836]
[1722211597959,4.78166,3275.0,3274.5,3.10033836]
[1722211598165,4.78166,3275.0,3274.5,2.6397927]
[1722211599900,2.3389,3275.0,3274.5,2.6397927]
[1722211600271,0.67348926,3274.9,3274.5,2.6397927]
[1722211600469,2.3389,3275.0,3274.5,2.6397927]
[1722211600703,0.67349179,3274.9,3274.5,2.6397927]
[1722211600908,2.3389,3275.0,3274.5,2.6397927]
[1722211601067,0.67349216,3274.9,3274.5,2.6397927]
[1722211601263,2.3389,3275.0,3274.5,2.6397927]
[1722211601487,0.67349225,3274.9,3274.5,2.6397927]
[1722211601686,2.3389,3275.0,3274.5,2.6397927]
[1722211601687,4.78167,3275.0,3274.5,2.6397927]
[1722211601888,0.67349352,3274.9,3274.5,2.6397927]
[1722211602206,2.2643,3275.2,3274.6,1.075]
[1722211602405,2.44253,3275.3,3274.6,1.075]
[1722211602406,0.67335223,3275.1,3274.8,3.51786]
[1722211602581,0.67335223,3275.0,3274.9,2.44282]
[1722211602784,4.88573,3275.7,3275.0,5.87093]
[1722211603109,0.90552115,3275.6,3275.2,1.075]
[1722211603290,0.67319613,3275.5,3275.2,1.075]
[1722211603493,4.88578,3275.7,3275.3,0.19624582]
[1722211603494,0.67319613,3275.4,3275.3,0.19624582]
[1722211603908,0.67319613,3275.4,3275.1,2.44263]
[1722211604204,0.67333485,3275.3,3275.2,0.19630852]
[1722211606408,0.67333485,3275.3,3275.2,2.63889852]
[1722211606803,0.67344413,3275.3,3275.2,2.63889852]
[1722211607015,0.67344413,3275.3,3275.2,0.19630852]
[1722211607203,0.67344413,3275.6,3275.2,2.63889852]
[1722211607392,1.05759977,3275.5,3275.2,2.63889852]
[1722211607582,1.7310729,3275.4,3275.2,2.63889852]
[1722211607786,1.7310729,3275.3,3275.2,2.63889852]
[1722211608877,0.67347313,3275.3,3275.2,2.63889852]
[1722211609333,1.73105446,3275.3,3275.2,2.63889852]
[1722211610271,1.73105411,3275.3,3275.2,2.63889852]
[1722211610931,1.73105411,3275.3,3275.2,5.68819837]
[1722211611130,1.73105411,3275.3,3275.2,6.76319837]
[1722211611504,1.73105411,3275.3,3275.2,4.32060837]
[1722211611685,1.73105411,3275.3,3275.2,2.63889852]
[1722211613383,0.67347313,3275.3,3275.2,2.63889852]
[1722211614106,1.73102581,3275.3,3275.2,2.63889852]
[1722211614415,1.05755268,3275.3,3275.2,2.63889852]
[1722211614913,1.05755268,3275.3,3275.2,5.08148852]
[1722211615214,1.05755268,3275.3,3275.2,2.63889852]
[1722211616685,2.3327,3275.9,3275.3,2.44247]
[1722211616886,1.73104407,3275.8,3275.3,2.44247]
[1722211617088,0.67349619,3275.7,3275.4,0.1960934]
[1722211617288,1.73104424,3275.6,3275.4,0.1960934]
[1722211617489,1.73104424,3275.5,3275.4,0.1960934]
[1722211618300,1.73104424,3275.5,3275.4,2.6385334]
[1722211619031,0.67349619,3275.5,3275.4,2.6385334]
[1722211619516,1.73103708,3275.5,3275.4,0.1960934]
[1722211619898,0.67349619,3275.5,3275.2,2.44255]
[1722211620095,1.73105251,3275.4,3275.2,4.88508]
[1722211620300,1.05755632,3275.3,3275.2,4.88508]
[1722211621726,1.05755632,3275.3,3275.2,5.54999081]
[1722211622423,2.3327,3275.9,3275.3,2.44249]
[1722211622625,1.73100085,3275.8,3275.3,2.44249]
[1722211622925,1.28978568,3275.7,3275.3,2.44249]
[1722211623125,1.73103094,3275.6,3275.3,2.44249]
[1722211623295,2.3327,3275.9,3275.3,2.44249]
[1722211623296,1.05753003,3275.5,3275.3,2.44249]
[1722211623502,0.67351081,3275.4,3275.3,2.44249]
[1722211624308,1.73104084,3275.4,3275.3,2.44249]
[1722211625422,1.73106121,3275.4,3275.3,2.44249]
[1722211625923,3.34001216,3277.4,3275.3,2.44249]
[1722211625924,2.4685,3276.3,3276.0,2.44194]
[1722211626133,2.4685,3276.6,3276.2,2.44178]
[1722211626422,2.4685,3276.6,3276.1,1.075]
[1722211626423,1.73027605,3276.5,3276.3,2.44173]
[1722211626597,1.73027605,3276.5,3276.4,2.63715424]
[1722211626598,1.05724893,3276.5,3276.4,2.63715424]
[1722211626799,1.73022017,3276.5,3276.4,3.97586966]
[1722211627027,1.05724893,3276.5,3276.4,6.41756966]
[1722211627231,2.4685,3276.9,3276.6,2.44149]
[1722211627432,1.73051665,3276.8,3276.7,0.19511927]
[1722211627628,1.73051665,3276.8,3276.4,1.075]
[1722211627629,1.05713378,3276.8,3276.6,2.44155]
[1722211627924,2.4685,3276.9,3276.6,2.44155]
[1722211627925,2.4685,3276.9,3276.7,0.19511927]
[1722211628127,2.4685,3277.4,3276.8,2.44135]
[1722211628290,2.20897184,3277.3,3276.9,2.44132]
[1722211628495,1.73044961,3277.2,3277.0,2.44125]
[1722211628693,1.05703004,3277.1,3277.0,2.44125]
[1722211628894,1.05703004,3277.1,3277.0,5.9575]
[1722211629129,1.05703004,3277.1,3277.0,2.44125]
[1722211629332,1.05703004,3277.1,3277.0,3.51625]
[1722211629664,2.4696,3277.7,3277.2,2.44106]
[1722211629810,1.30393924,3277.6,3277.2,2.44106]
[1722211630013,1.05697924,3277.5,3277.2,2.44106]
[1722211631950,1.0569236,3277.4,3277.0,2.4412]
[1722211632101,1.05695975,3277.3,3277.0,2.4412]
[1722211632300,0.515737,3277.5,3277.0,2.4412]
[1722211632616,1.05694912,3277.4,3277.0,2.4412]
[1722211632798,0.515737,3277.5,3277.0,2.4412]
[1722211633003,1.05696038,3277.4,3277.0,2.4412]
[1722211633221,0.515737,3277.5,3277.0,2.4412]
[1722211633421,1.0570019,3277.4,3277.0,2.4412]
[1722211633623,0.515737,3277.5,3277.0,2.4412]
[1722211633952,1.05698886,3277.4,3277.0,2.4412]
[1722211634162,0.515737,3277.5,3277.0,2.4412]
[1722211634304,1.0569669,3277.4,3277.0,2.4412]
[1722211634505,0.515737,3277.5,3277.0,2.4412]
[1722211634707,0.24696,3277.6,3277.0,2.4412]
[1722211634906,1.05696685,3277.5,3277.0,2.4412]
[1722211635173,0.24696,3277.6,3277.0,2.4412]
[1722211635457,1.05696642,3277.5,3277.1,2.44117]
[1722211635608,4.91039,3277.7,3277.1,2.44117]
[1722211635810,1.05695192,3277.6,3277.1,2.44117]
[1722211636062,1.05695192,3277.5,3277.1,2.44117]
[1722211636350,1.05695192,3277.6,3277.1,2.44117]
[1722211636647,4.91039,3277.7,3277.1,2.44117]
[1722211636648,1.05696318,3277.5,3277.1,2.44117]
[1722211636871,3.068139,3277.7,3277.1,2.44117]
[1722211637013,1.05693532,3277.6,3277.2,2.44109]
[1722211637212,2.44058,3277.9,3277.3,2.44102]
[1722211637518,1.05693412,3277.8,3277.3,2.44102]
[1722211637713,1.05693412,3277.7,3277.3,2.44102]
[1722211637920,0.351553,3277.9,3277.3,2.44102]
[1722211638120,1.05689225,3277.8,3277.3,2.44102]
[1722211638344,0.351553,3277.9,3277.3,2.44102]
[1722211638517,1.05689219,3277.7,3277.3,2.44102]
[1722211638717,0.351553,3277.9,3277.3,2.44102]
[1722211638924,1.05691122,3277.8,3277.3,2.44102]
[1722211639220,1.05691122,3277.7,3277.3,2.44102]
[1722211639416,0.351553,3277.9,3277.3,2.44102]
[1722211639616,4.91351,3278.0,3277.3,2.44102]
[1722211639617,1.05688332,3277.8,3277.5,2.44088]
[1722211639806,2.473,3278.0,3277.5,2.44088]
[1722211640139,1.05686731,3277.9,3277.5,2.44088]
[1722211640338,1.05686731,3277.8,3277.5,2.44088]
[1722211640538,2.473,3278.0,3277.5,2.44088]
[1722211640853,1.05686736,3277.9,3277.6,2.4408]
[1722211641060,2.473,3278.0,3277.6,2.4408]
[1722211641613,1.05682668,3277.9,3277.6,2.4408]
[1722211641758,2.473,3278.0,3277.7,0.1937632]
[1722211643555,2.44058,3277.9,3277.3,2.44101]
[1722211643758,3.175981,3277.9,3277.8,0.1937006]
[1722211644055,1.79230271,3277.9,3277.3,2.44098]
[1722211644259,3.548,3278.0,3277.4,2.63490102]
[1722211644458,1.05690225,3277.9,3277.4,2.63490102]
[1722211644956,1.05690204,3277.8,3277.4,2.63490102]
[1722211645154,5.98851,3278.0,3277.4,2.63490102]
[1722211645323,1.05689209,3277.9,3277.4,2.63490102]
[1722211645524,5.98851,3278.0,3277.4,2.63490102]
[1722211645525,1.05689209,3277.8,3277.4,2.63490102]
[1722211645723,2.44059,3277.9,3277.4,0.19395102]
[1722211645959,2.44078,3277.7,3277.4,0.19395102]
[1722211646155,2.44078,3277.7,3277.1,22.09117]
[1722211646472,3.49778657,3277.6,3277.1,19.65]
[1722211646679,2.44082,3277.6,3277.2,0.19396669]
[1722211646822,2.44074,3277.7,3277.2,0.19396669]
[1722211647022,1.05696665,3277.6,3277.2,0.19396669]
[1722211647258,2.44074,3277.7,3277.2,0.19396669]
[1722211647480,1.056943,3277.6,3277.2,0.19396669]
[1722211647679,2.44074,3277.7,3277.2,0.19396669]
[1722211647916,1.05694494,3277.6,3277.2,0.19396669]
[1722211648115,2.44074,3277.7,3277.2,0.19396669]
[1722211648415,1.05694672,3277.6,3277.2,0.19396669]
[1722211648596,1.05694672,3277.6,3277.2,2.63506669]
[1722211648921,1.05694721,3277.5,3277.2,2.63506669]
[1722211649211,2.44074,3277.7,3277.2,2.63506669]
[1722211649521,1.05695312,3277.6,3277.2,0.19396669]
[1722211649818,1.05695312,3277.5,3277.2,0.19396669]
[1722211649971,1.05695312,3277.6,3277.2,0.19396669]
[1722211650172,1.05695312,3277.5,3277.2,0.19396669]
[1722211651319,1.075,3277.8,3277.2,0.19396669]
[1722211651484,1.05694715,3277.7,3277.2,0.19396669]
[1722211651817,1.05694715,3277.6,3277.2,2.59966669]
[1722211651978,3.039469,3277.9,3277.2,2.59966669]
[1722211651979,1.05694715,3277.8,3277.2,4.96944531]
[1722211652182,1.05694715,3277.7,3277.3,2.44099]
[1722211652380,2.44061,3277.9,3277.3,2.44099]
[1722211652381,1.05694715,3277.6,3277.3,2.44099]
[1722211652617,1.05688462,3277.5,3277.4,0.19373689]
[1722211653012,1.05689182,3277.5,3277.4,0.19373689]
[1722211654132,1.05689182,3277.5,3277.4,0.19371698]
[1722211654267,1.05689182,3277.5,3277.4,2.63466698]
[1722211654473,2.44061,3277.9,3277.4,2.63466698]
[1722211654823,1.05688309,3277.8,3277.4,2.63466698]
[1722211654997,2.44061,3277.9,3277.4,2.63466698]
[1722211655174,1.05687346,3277.7,3277.4,2.63466698]
[1722211655389,1.05687346,3277.6,3277.4,2.63466698]
[1722211655573,1.05687346,3277.8,3277.4,2.63466698]
[1722211655786,1.05687346,3277.7,3277.4,2.63466698]
[1722211656000,1.05687346,3277.6,3277.4,2.63466698]
[1722211656188,1.05687346,3277.8,3277.4,2.63466698]
[1722211656404,1.05687346,3277.8,3277.4,0.19371698]
[1722211656771,1.05687346,3277.8,3277.2,2.4057]